bitfinex-derivatives/quotes_BNBF0:USTF0_20250101
["timestamp","ask_amount","ask_price","bid_price","bid_amount"]
[1735742976690,0.25987733,708.87,707.74,0.28258965]
[1735742976891,0.25987733,708.86,707.81,1.04623944]
[1735742977092,0.25987733,708.85,707.81,1.04623944]
[1735742977285,0.25987733,708.84,707.81,1.04623944]
[1735742977485,0.25987733,708.83,707.81,1.04623944]
[1735742977687,2.51613695,708.91,707.81,1.04623944]
[1735742977688,0.25987733,708.82,707.81,1.04623944]
[1735742977891,0.25987733,708.81,707.81,1.04623944]
[1735742978190,0.25987733,708.8,707.87,1.04623944]
[1735742978491,0.25987733,708.79,707.87,1.04623944]
[1735742978792,0.25987733,708.78,707.87,1.04623944]
[1735742979091,0.25987733,708.77,707.88,1.04623944]
[1735742979291,1.47413903,708.91,707.88,1.04623944]
[1735742979485,0.2598668,708.9,707.88,1.04623944]
[1735742980083,0.25986344,708.89,707.88,1.04623944]
[1735742980288,0.25986344,708.88,707.88,1.04623944]
[1735742980591,0.25986344,708.87,707.89,1.04623944]
[1735742980790,0.25986344,708.86,707.89,1.04623944]
[1735742980988,0.25986344,708.85,707.89,1.04623944]
[1735742981186,0.25986344,708.84,707.89,1.04623944]
[1735742981391,0.25986344,708.83,707.89,1.04623944]
[1735742981586,0.25986344,708.82,707.89,1.04623944]
[1735742981789,0.25986344,708.81,707.89,1.04623944]
[1735742981989,2.51613695,708.91,707.89,1.04623944]
[1735742982186,0.25987455,708.9,707.89,1.04623944]
[1735742982892,1.04199792,708.89,707.87,1.04623944]
[1735742983191,0.25987455,708.88,707.87,1.04623944]
[1735742984092,0.25987455,708.88,707.89,1.04623944]
[1735742984392,0.25987455,708.87,707.89,1.04623944]
[1735742984589,0.25987455,708.86,707.89,1.04623944]
[1735742984786,0.25987455,708.85,707.89,1.04623944]
[1735742984986,0.25987455,708.84,707.86,1.04623944]
[1735742985189,0.25987455,708.83,707.86,1.04623944]
[1735742985392,0.25987455,708.82,707.86,1.04623944]
[1735742985591,0.25987455,708.81,707.86,1.04623944]
[1735742985794,0.25987455,708.8,707.86,1.04623944]
[1735742986093,0.25987455,708.79,707.9,1.04623944]
[1735742986292,2.51613695,708.91,707.9,1.04623944]
[1735742986293,0.25987455,708.78,707.9,1.04623944]
[1735742986594,0.25987455,708.77,707.9,1.04623944]
[1735742986794,2.51613695,708.91,707.9,1.04623944]
[1735742986993,0.25986337,708.9,707.9,1.04623944]
[1735742987195,1.04199792,708.9,707.89,1.04623944]
[1735742987394,0.25986559,708.89,707.89,1.04623944]
[1735742987894,1.04199792,708.9,707.89,1.04623944]
[1735742988095,0.259865,708.89,707.89,1.04623944]
[1735742988296,0.259865,708.89,707.74,0.28258965]
[1735742988297,0.259865,708.89,707.9,1.04623944]
[1735742989099,0.259865,708.89,707.91,1.04623944]
[1735742989290,0.259865,708.88,707.91,1.04623944]
[1735742989496,0.259865,708.87,707.91,1.04623944]
[1735742989697,0.259865,708.86,707.91,1.04623944]
[1735742989895,0.259865,708.85,707.91,1.04623944]
[1735742990096,0.25986811,708.84,707.91,1.04623944]
[1735742990296,0.25986811,708.83,707.91,1.04623944]
[1735742990492,0.25986811,708.82,707.89,1.04623944]
[1735742990696,0.25986811,708.81,707.89,1.04623944]
[1735742990896,0.25986811,708.8,707.89,1.04623944]
[1735742991092,0.25986811,708.79,707.89,1.04623944]
[1735742991397,0.25986811,708.78,707.87,1.04623944]
[1735742991598,0.25986811,708.77,707.87,1.04623944]
[1735742991798,0.25986811,708.76,707.87,1.04623944]
[1735742991995,1.04199792,708.88,707.87,1.04623944]
[1735742991996,0.25986811,708.75,707.87,1.04623944]
[1735742992298,0.25986811,708.74,707.87,1.04623944]
[1735742992496,1.04199792,708.85,707.86,1.04623944]
[1735742992692,0.25987704,708.84,707.86,1.04623944]
[1735742993697,1.47418066,708.83,707.88,1.04623944]
[1735742993901,0.25987704,708.82,707.88,1.04623944]
[1735742994903,0.25987704,708.82,707.74,0.28258965]
[1735742994904,0.25987704,708.82,707.86,1.04623944]
[1735742995302,0.25988244,708.81,707.86,1.04623944]
[1735742995506,2.51617858,708.83,707.86,1.04623944]
[1735742995507,0.25988244,708.8,707.86,1.04623944]
[1735742995702,0.25988244,708.79,707.86,1.04623944]
[1735742995901,0.25988244,708.78,707.86,1.04623944]
[1735742996105,2.51617858,708.83,707.88,1.04623944]
[1735742996106,0.25988244,708.77,707.88,1.04623944]
[1735742996305,0.25988244,708.76,707.88,1.04623944]
[1735742996506,0.25988244,708.75,707.88,1.04623944]
[1735742996706,0.25988244,708.74,707.88,1.04623944]
[1735742996906,0.25988244,708.73,707.88,1.04623944]
[1735742997107,0.25988244,708.72,707.88,1.04623944]
[1735742997301,0.25988244,708.71,707.88,1.04623944]
[1735742997501,0.25988244,708.7,707.88,1.04623944]
[1735742997702,2.51617858,708.83,707.88,1.04623944]
[1735742997903,0.25989485,708.82,707.88,1.04623944]
[1735742998102,0.25989569,708.81,707.88,1.04623944]
[1735742998306,2.51617858,708.83,707.86,1.04623944]
[1735742998307,1.30189361,708.8,707.86,1.04623944]
[1735742998508,0.25989569,708.79,707.86,1.04623944]
[1735743000509,1.30189361,708.79,707.85,1.04623944]
[1735743000708,0.25989569,708.78,707.85,1.04623944]
[1735743001510,0.25989569,708.78,707.87,1.04623944]
[1735743001710,0.25989569,708.77,707.87,1.04623944]
[1735743001909,0.25989569,708.76,707.87,1.04623944]
[1735743002109,0.25989569,708.75,707.87,1.04623944]
[1735743002309,1.04199792,708.8,707.87,1.04623944]
[1735743002610,0.25989124,708.79,707.88,1.04623944]
[1735743002819,1.04199792,708.8,707.88,1.04623944]
[1735743003208,1.47418066,708.83,707.83,1.04623944]
[1735743004216,1.47418066,708.83,707.88,1.04623944]
[1735743005314,1.04199792,708.92,707.88,1.04623944]
[1735743005515,0.25986462,708.91,707.88,1.04623944]
[1735743005716,1.04199792,708.89,707.88,1.04623944]
[1735743006919,1.04199792,708.92,707.9,1.04623944]
[1735743007118,0.25986316,708.91,707.9,1.04623944]
[1735743007918,1.04199792,708.9,707.89,1.04623944]
[1735743008116,0.25986316,708.89,707.89,1.04623944]
[1735743009318,1.04199792,708.87,707.98,1.04623944]
[1735743010420,0.25983812,708.86,708.02,1.04623944]
[1735743010618,2.51611613,708.93,708.02,1.04623944]
[1735743010814,0.25983761,708.92,708.02,1.04623944]
[1735743011015,0.25985144,708.91,708.02,1.04623944]
[1735743011214,0.25985144,708.9,708.02,1.04623944]
[1735743011519,0.25985144,708.89,708.02,1.04623944]
[1735743011714,0.25985144,708.88,708.02,1.04623944]
[1735743011921,0.25985144,708.87,708.02,1.04623944]
[1735743012114,1.04199792,708.91,707.98,1.04623944]
[1735743012320,0.25984471,708.9,707.98,1.04623944]
[1735743012919,1.04199792,708.91,707.98,1.04623944]
[1735743013120,0.25983759,708.9,707.98,1.04623944]
[1735743013720,1.04199792,708.91,707.98,1.04623944]
[1735743014315,1.04199792,708.97,707.98,1.04623944]
[1735743014514,0.25982675,708.96,707.99,1.04623944]
[1735743016322,1.04199792,708.97,707.99,1.04623944]
[1735743024924,0.25979238,708.96,707.99,1.04623944]
[1735743025328,0.25979238,708.96,707.97,1.04623944]
[1735743025525,1.47366564,709.18,707.97,1.04623944]
[1735743025726,0.25979386,709.17,707.97,1.04623944]
[1735743026230,0.25979386,709.17,707.95,1.04623944]
[1735743028025,0.25979386,709.17,707.94,1.04623944]
[1735743029330,0.25979386,709.17,707.93,1.04623944]
[1735743030129,0.25979386,709.17,707.94,1.04623944]
[1735743031133,0.25979454,709.16,707.94,1.04623944]
[1735743031334,0.25979454,709.15,707.94,1.04623944]
[1735743031536,0.25979454,709.14,707.94,1.04623944]
[1735743031731,0.25979454,709.13,707.94,1.04623944]
[1735743031932,0.25979454,709.12,707.94,1.04623944]
[1735743032131,0.25979454,709.11,707.94,1.04623944]
[1735743032333,0.25979454,709.1,707.94,1.04623944]
[1735743032532,0.25979454,709.09,707.94,1.04623944]
[1735743032732,0.25979454,709.08,707.94,1.04623944]
[1735743033236,0.25979454,709.08,707.9,1.04623944]
[1735743033737,0.25979829,709.07,707.9,1.04623944]
[1735743033937,0.25979829,709.06,707.9,1.04623944]
[1735743034238,1.47370724,709.09,707.91,1.04623944]
[1735743034438,0.25979252,709.08,707.91,1.04623944]
[1735743035540,0.25979252,709.08,707.89,1.04623944]
[1735743036040,1.47370724,709.09,707.89,1.04623944]
[1735743036239,0.25979281,709.08,707.89,1.04623944]
[1735743036440,1.47370724,709.09,707.89,1.04623944]
[1735743036641,0.25979142,709.08,707.93,1.04623944]
[1735743038643,0.25979142,709.08,707.96,1.04623944]
[1735743039043,1.47370724,709.09,707.96,1.04623944]
[1735743039242,0.25979149,709.08,707.96,1.04623944]
[1735743039436,1.47370724,709.09,707.96,1.04623944]
[1735743039641,0.25979149,709.08,707.97,1.04623944]
[1735743040545,0.25979149,709.08,707.99,1.04623944]
[1735743040844,1.04199792,709.23,707.99,1.04623944]
[1735743041144,1.47361364,709.18,707.99,1.04623944]
[1735743041744,0.25978215,709.17,707.99,1.04623944]
[1735743041944,0.25978215,709.17,708.0,1.04623944]
[1735743042443,0.25978276,709.16,708.0,1.04623944]
[1735743042742,0.25978276,709.15,708.0,1.04623944]
[1735743042944,0.25978276,709.14,708.0,1.04623944]
[1735743043144,0.25978276,709.13,708.0,1.04623944]
[1735743043338,0.25978276,709.12,708.0,1.04623944]
[1735743043541,1.47361364,709.18,708.0,1.04623944]
[1735743043744,0.25979521,709.17,708.0,1.04623944]
[1735743045142,0.25979521,709.17,708.06,1.04623944]
[1735743046745,1.30179313,709.17,708.08,1.04623944]
[1735743046940,0.25979521,709.16,708.08,1.04623944]
[1735743047145,0.25979246,709.15,708.08,1.04623944]
[1735743047338,0.25979246,709.14,708.08,1.04623944]
[1735743047544,1.04199792,709.12,708.1,1.04623944]
[1735743047739,0.25979246,709.11,708.1,1.04623944]
[1735743048646,0.25979246,709.11,707.75,1.76916377]
[1735743048647,1.04199792,709.08,708.13,1.04623944]
[1735743049942,0.25979746,709.07,708.14,1.04623944]
[1735743050146,1.04199792,709.1,708.14,1.04623944]
[1735743050345,0.25979697,709.09,708.14,1.04623944]
[1735743051047,0.25979697,709.09,707.75,0.72292433]
[1735743051048,1.04199792,709.08,708.12,1.04623944]
[1735743051248,0.25979697,709.07,708.12,1.04623944]
[1735743051848,1.04199792,709.01,708.19,1.04623944]
[1735743052047,0.25979697,709.0,708.19,1.04623944]
[1735743052548,0.25978953,708.99,708.19,1.04623944]
[1735743052748,1.04199792,709.01,708.23,1.04623944]
[1735743052948,0.2597884,709.0,708.23,1.04623944]
[1735743053849,0.2597884,709.0,707.75,0.72292433]
[1735743053850,1.04199792,708.99,708.2,1.04623944]
[1735743054048,0.2597884,708.98,708.2,1.04623944]
[1735743055150,0.2597884,708.98,708.21,1.04623944]
[1735743056246,1.04199792,708.96,708.1,1.04623944]
[1735743056451,0.2597884,708.95,708.1,1.04623944]
[1735743057449,1.04199792,708.97,708.1,1.04623944]
[1735743057651,0.25982305,708.96,708.1,1.04623944]
[1735743058248,0.25982379,708.95,708.07,1.04623944]
[1735743058453,1.04199792,708.97,708.07,1.04623944]
[1735743058653,0.25982644,708.96,708.07,1.04623944]
[1735743059653,1.04199792,709.0,708.03,1.04623944]
[1735743059854,0.25982069,708.99,708.03,1.04623944]
[1735743060149,1.04199792,709.0,708.03,1.04623944]
[1735743060353,0.25981944,708.99,708.03,1.04623944]
[1735743061052,0.25981944,708.98,708.03,1.04623944]
[1735743061255,1.04199792,709.03,708.03,1.04623944]
[1735743061450,1.47382167,708.98,708.03,1.04623944]
[1735743061955,1.04199792,709.03,708.02,1.04623944]
[1735743062151,0.25979468,709.02,708.02,1.04623944]
[1735743062958,0.25979468,709.02,708.12,1.04623944]
[1735743063157,0.25979468,709.01,708.12,1.04623944]
[1735743063352,1.04199792,709.09,708.12,1.04623944]
[1735743063353,0.25979468,709.0,708.12,1.04623944]
[1735743063656,1.04199792,709.09,708.12,1.04623944]
[1735743063853,0.25978933,709.08,708.12,1.04623944]
[1735743064257,1.04199792,709.07,708.13,1.04623944]
[1735743064656,0.25979047,709.06,708.13,1.04623944]
[1735743065660,1.04199792,709.05,708.18,1.04623944]
[1735743065854,0.25979047,709.04,708.18,1.04623944]
[1735743066864,0.25979047,709.04,708.19,1.04623944]
[1735743067061,0.25979047,709.03,708.19,1.04623944]
[1735743067359,0.25980264,709.02,708.19,1.04623944]
[1735743067555,0.25980264,709.01,708.19,1.04623944]
[1735743067761,1.04199792,709.07,708.19,1.04623944]
[1735743067762,0.25980264,709.0,708.19,1.04623944]
[1735743068062,0.25980264,708.99,708.17,1.04623944]
[1735743068356,0.25980264,708.98,708.17,1.04623944]
[1735743068557,1.04199792,709.05,708.17,1.04623944]
[1735743068558,0.25980264,708.97,708.17,1.04623944]
[1735743068762,0.25980264,708.96,708.13,1.04623944]
[1735743068958,0.25980264,708.95,708.13,1.04623944]
[1735743069259,0.25980264,708.94,708.13,1.04623944]
[1735743069563,1.04199792,709.03,708.13,1.04623944]
[1735743069759,0.25980993,709.02,708.13,1.04623944]
[1735743070058,1.47375405,709.1,708.11,1.04623944]
[1735743070059,1.30181357,709.01,708.11,1.04623944]
[1735743070260,0.25981565,709.0,708.11,1.04623944]
[1735743071061,1.04199792,709.06,708.01,1.04623944]
[1735743071261,0.2598189,709.05,708.01,1.04623944]
[1735743072262,0.2598189,709.05,707.78,1.04623944]
[1735743072263,1.30181682,709.05,708.0,1.04623944]
[1735743072463,0.2598189,709.04,708.0,1.04623944]
[1735743073262,0.25982602,709.03,708.0,1.04623944]
[1735743073460,0.25982602,709.02,708.0,1.04623944]
[1735743073663,0.25982602,709.02,707.78,1.04623944]
[1735743073664,0.25982602,709.01,707.98,1.04623944]
[1735743073958,0.25982602,709.0,707.98,1.04623944]
[1735743074465,0.25982602,709.0,707.91,1.04623944]
[1735743074466,1.04199792,708.99,707.91,1.04623944]
[1735743074763,0.25982602,708.98,707.91,1.04623944]
[1735743075157,0.25984599,708.97,707.91,1.04623944]
[1735743075361,0.25984599,708.96,707.91,1.04623944]
[1735743075560,0.25984599,708.95,707.91,1.04623944]
[1735743075767,0.25984705,708.94,707.91,1.04623944]
[1735743075962,0.25984705,708.93,707.91,1.04623944]
[1735743076163,1.47386848,709.01,707.9,1.04623944]
[1735743076465,0.25986477,709.0,707.9,1.04623944]
[1735743077264,1.30186269,709.0,707.87,1.04623944]
[1735743077563,0.25986477,708.99,707.87,1.04623944]
[1735743077759,0.25982508,708.98,707.87,1.04623944]
[1735743077965,1.04199792,709.0,707.87,1.04623944]
[1735743078164,0.25981544,708.99,707.87,1.04623944]
[1735743078364,0.25981544,708.99,707.94,1.04623944]
[1735743078564,0.25981544,708.98,707.94,1.04623944]
[1735743078759,1.47386848,709.01,707.94,1.04623944]
[1735743078965,0.25981391,709.0,707.94,1.04623944]
[1735743079760,0.25981391,709.0,707.99,1.04623944]
[1735743080576,1.47386848,709.01,707.99,1.04623944]
[1735743080779,1.47386848,709.01,707.95,1.04623944]
[1735743082076,1.47386848,709.01,707.74,0.28258965]
[1735743082077,1.47386848,709.01,707.89,1.04623944]
[1735743082765,1.47386848,709.01,707.9,1.04623944]
[1735743084966,1.47386848,709.01,707.91,1.04623944]
[1735743085965,1.47386848,709.01,707.98,1.04623944]
[1735743087085,1.47386848,709.01,707.99,1.04623944]
[1735743088182,1.47386848,709.01,707.98,1.04623944]
[1735743089078,1.47386848,709.01,707.99,1.04623944]
[1735743090696,0.25980682,709.0,707.98,1.04623944]
[1735743090905,0.25980682,708.99,707.98,1.04623944]
[1735743091180,1.47386848,709.01,707.98,1.04623944]
[1735743091406,0.2598047,709.0,707.98,1.04623944]
[1735743091783,0.2598047,709.0,707.74,0.28258965]
[1735743091784,0.2598047,709.0,708.03,1.04623944]
[1735743092772,0.2598047,709.0,708.1,1.04623944]
[1735743093481,0.25979445,708.99,708.1,1.04623944]
[1735743093675,0.25979445,708.98,708.11,1.04623944]
[1735743093899,0.25979445,708.97,708.11,1.04623944]
[1735743094073,1.47386848,709.01,708.11,1.04623944]
[1735743094293,0.25978754,709.0,708.11,1.04623944]
[1735743094599,0.25978754,709.0,708.13,1.04623944]
[1735743095873,0.25978754,709.0,707.94,1.04623944]
[1735743095874,0.25978754,709.0,708.12,1.04623944]
[1735743096068,0.25979221,708.99,708.12,1.04623944]
[1735743096268,0.25979221,708.98,708.12,1.04623944]
[1735743096473,0.25979221,709.0,708.12,1.04623944]
[1735743096667,0.2597919,708.99,708.12,1.04623944]
[1735743096872,0.2597919,708.98,708.12,1.04623944]
[1735743097174,0.25979835,708.97,708.12,1.04623944]
[1735743097372,0.25979835,708.96,708.12,1.04623944]
[1735743097570,1.47386848,709.01,708.12,1.04623944]
[1735743097770,0.25979621,709.0,708.12,1.04623944]
[1735743097975,0.25979621,709.0,708.09,1.04623944]
[1735743098575,0.25979621,709.0,708.1,1.04623944]
[1735743098774,0.25980113,708.99,708.1,1.04623944]
[1735743098974,0.25980113,708.98,708.1,1.04623944]
[1735743099274,0.25980113,708.97,708.1,1.04623944]
[1735743099469,1.47386848,709.01,708.1,1.04623944]
[1735743099678,0.25980161,709.0,708.09,1.04623944]
[1735743101082,0.25980161,708.99,708.09,1.04623944]
[1735743101275,0.25980161,708.98,708.09,1.04623944]
[1735743101485,0.25979233,708.97,708.09,1.04623944]
[1735743101776,1.47370724,709.07,708.12,1.04623944]
[1735743101982,0.25979124,709.06,708.12,1.04623944]
[1735743102777,1.47370724,709.07,708.12,1.04623944]
[1735743102984,1.47370724,709.07,707.75,0.72284224]
[1735743102985,1.47370724,709.07,708.09,1.04623944]
[1735743103171,0.25979639,709.06,708.09,1.04623944]
[1735743103879,0.25979639,709.06,707.78,1.04623944]
[1735743103880,0.25979639,709.06,708.01,1.04623944]
[1735743104078,0.25981174,709.05,708.01,1.04623944]
[1735743104272,0.25981174,709.04,708.01,1.04623944]
[1735743104477,0.25981174,709.03,708.01,1.04623944]
[1735743104680,0.25981174,709.06,708.01,1.04623944]
[1735743104878,1.47370724,709.07,707.74,0.28258965]
[1735743104879,0.25981357,709.05,708.0,1.04623944]
[1735743105073,0.25981357,709.04,708.0,1.04623944]
[1735743105277,0.25981357,709.03,708.0,1.04623944]
[1735743105581,0.25981357,709.02,708.0,1.04623944]
[1735743105877,0.25981357,709.01,708.0,1.04623944]
[1735743106071,0.25981357,709.0,708.0,1.04623944]
[1735743106277,0.25981357,708.99,707.99,1.04623944]
[1735743106477,0.25981357,708.98,707.99,1.04623944]
[1735743106780,2.51570516,709.07,707.99,1.04623944]
[1735743106978,0.25982133,709.06,707.99,1.04623944]
[1735743107376,1.30181925,709.06,707.99,1.04623944]
[1735743107576,0.25982133,709.05,707.99,1.04623944]
[1735743108580,0.25982133,709.05,707.74,0.28258965]
[1735743108581,1.30181925,709.05,708.0,1.04623944]
[1735743108778,0.25982133,709.04,708.0,1.04623944]
[1735743110682,0.25982133,709.04,707.79,1.04623944]
[1735743110683,1.30181925,709.04,708.01,1.04623944]
[1735743110878,0.25982133,709.03,708.01,1.04623944]
[1735743111583,1.04199792,709.01,708.03,1.04623944]
[1735743111799,0.25982133,709.0,708.03,1.04623944]
[1735743112085,0.25982876,708.99,708.03,1.04623944]
[1735743112283,0.25982876,708.98,708.03,1.04623944]
[1735743112484,0.25982876,708.97,708.03,1.04623944]
[1735743112784,0.2598367,708.96,708.03,1.04623944]
[1735743112985,0.2598367,708.97,708.03,1.04623944]
[1735743113178,0.2598367,708.96,708.03,1.04623944]
[1735743113379,0.2598367,708.95,708.03,1.04623944]
[1735743113681,1.04199792,708.98,708.03,1.04623944]
[1735743113885,1.04199792,708.95,708.02,1.04623944]
[1735743114885,1.04199792,709.08,707.96,1.04623944]
[1735743116092,1.47382167,709.1,708.02,1.04623944]
[1735743117589,1.47382167,709.1,708.03,1.04623944]
[1735743118695,1.47382167,709.1,708.04,1.04623944]
[1735743120692,0.25979833,709.09,708.04,1.04623944]
[1735743121291,0.25979833,709.09,708.02,1.04623944]
[1735743121893,1.47382167,709.1,708.02,1.04623944]
[1735743122091,0.25979728,709.09,708.02,1.04623944]
[1735743122292,1.3017952,709.09,708.1,1.04623944]
[1735743122493,0.25979728,709.08,708.1,1.04623944]
[1735743123401,0.25979728,709.08,708.09,1.04623944]
[1735743123402,1.3017952,709.08,708.09,1.04623944]
[1735743123599,0.25979728,709.07,708.09,1.04623944]
[1735743124601,0.25979922,709.06,708.09,1.04623944]
[1735743124802,0.25979922,709.05,708.09,1.04623944]
[1735743125004,0.25979922,709.04,708.09,1.04623944]
[1735743125203,0.25979922,709.03,708.09,1.04623944]
[1735743125404,0.25979922,709.02,708.08,1.04623944]
[1735743125607,0.25981038,709.01,708.08,1.04623944]
[1735743125901,1.47372804,709.02,708.08,1.04623944]
[1735743126608,1.47372804,709.02,708.0,1.04623944]
[1735743127908,1.47372804,709.02,707.99,1.04623944]
[1735743128407,0.25983171,709.01,707.99,1.04623944]
[1735743128908,0.25983171,709.01,707.96,1.04623944]
[1735743129606,1.47372804,709.02,707.96,1.04623944]
[1735743129807,2.51572596,709.02,707.94,1.04623944]
[1735743130007,0.25982943,709.01,707.94,1.04623944]
[1735743130508,2.51572596,709.02,707.94,1.04623944]
[1735743130910,1.47372804,709.02,707.96,1.04623944]
[1735743131706,1.47372804,709.02,707.97,1.04623944]
[1735743131902,0.25982712,709.01,707.97,1.04623944]
[1735743132103,1.47372804,709.02,707.97,1.04623944]
[1735743132708,0.25982896,709.01,707.95,1.04623944]
[1735743133008,1.47372804,709.02,707.95,1.04623944]
[1735743133413,0.25982981,709.01,707.95,1.04623944]
[1735743133804,0.25982981,709.01,707.74,0.28258965]
[1735743133805,0.25982981,709.01,707.96,1.04623944]
[1735743134908,0.25982981,709.01,707.95,1.04623944]
[1735743136137,0.25982981,709.01,707.74,0.28258965]
[1735743136138,1.04199792,708.91,708.04,1.04623944]
[1735743136311,0.25982981,708.9,708.04,1.04623944]
[1735743136811,1.47401415,708.89,708.04,1.04623944]
[1735743137116,0.25982981,708.88,708.04,1.04623944]
[1735743137512,1.04199792,708.85,707.95,1.04623944]
[1735743137810,0.25982981,708.84,707.95,1.04623944]
[1735743138505,0.25982981,708.84,707.88,1.04623944]
[1735743138714,0.25982981,708.83,707.88,1.04623944]
[1735743138909,0.25982981,708.82,707.88,1.04623944]
[1735743139123,0.25982981,708.81,707.88,1.04623944]
[1735743139307,0.25982981,708.8,707.88,1.04623944]
[1735743139610,0.25982981,708.79,707.88,1.04623944]
[1735743139808,0.25982981,708.78,707.88,1.04623944]
[1735743140010,0.25982981,708.77,707.89,1.04623944]
[1735743140312,2.51601207,708.89,707.89,1.04623944]
[1735743140514,0.25988357,708.88,707.89,1.04623944]
[1735743141218,0.25988357,708.88,707.74,0.28258965]
[1735743141219,0.25988357,708.88,707.76,1.04623944]
[1735743142315,0.25988357,708.88,707.74,1.32882909]
[1735743143517,0.25987681,708.87,707.74,1.32882909]
[1735743143710,0.25987681,708.86,707.74,1.32882909]
[1735743143912,1.47401415,708.89,707.74,1.32882909]
[1735743144109,0.2598783,708.88,707.74,1.32882909]
[1735743144510,0.2598783,708.88,707.74,0.28258965]
[1735743145618,0.25988127,708.87,707.74,0.28258965]
[1735743145812,0.25988127,708.86,707.74,0.28258965]
[1735743146022,0.25988127,708.85,707.74,0.28258965]
[1735743146216,1.47401415,708.89,707.74,0.28258965]
[1735743146518,0.25988177,708.88,707.74,0.28258965]
[1735743147017,1.47401415,708.89,707.74,0.28258965]
[1735743150087,1.47401415,708.89,707.05,1.04623944]
[1735743150088,1.47401415,708.89,707.37,1.04623944]
[1735743150200,0.25994559,708.88,707.37,1.04623944]
[1735743150420,1.47401415,708.89,707.37,1.04623944]
[1735743150918,0.2599414,708.88,707.37,1.04623944]
[1735743151121,0.2599414,708.88,707.33,1.04623944]
[1735743151520,0.2599414,708.88,707.33,1.32899289]
[1735743152220,0.2599414,708.88,707.36,1.04623944]
[1735743153018,0.2599414,708.88,707.45,1.04623944]
[1735743153415,0.25993851,708.87,707.45,1.04623944]
[1735743153617,0.25993851,708.86,707.45,1.04623944]
[1735743153819,0.25993851,708.85,707.45,1.04623944]
[1735743154019,0.25993851,708.84,707.45,1.04623944]
[1735743154221,1.47401415,708.89,707.33,0.28275345]
[1735743154222,0.25993851,708.83,707.48,1.04623944]
[1735743154429,0.25993851,708.82,707.48,1.04623944]
[1735743154621,0.25993851,708.81,707.48,1.04623944]
[1735743154823,0.25993851,708.8,707.48,1.04623944]
[1735743155023,0.25993851,708.79,707.48,1.04623944]
[1735743155223,0.25993851,708.78,707.58,1.04623944]
[1735743155422,0.25993851,708.77,707.58,1.04623944]
[1735743155623,0.25993851,708.76,707.58,1.04623944]
[1735743155822,1.47438885,708.81,707.58,1.04623944]
[1735743156015,0.25990212,708.8,707.58,1.04623944]
[1735743157518,0.25990212,708.8,707.57,1.04623944]
[1735743158528,0.25990212,708.8,707.56,1.04623944]
[1735743159226,1.47438885,708.81,707.56,1.04623944]
[1735743159426,0.25990179,708.8,707.57,1.04623944]
[1735743159626,1.47438885,708.81,707.57,1.04623944]
[1735743159828,0.25990862,708.8,707.57,1.04623944]
[1735743160627,0.25990862,708.8,707.54,1.04623944]
[1735743161425,0.25991895,708.79,707.54,1.04623944]
[1735743161626,0.25991895,708.78,707.54,1.04623944]
[1735743161821,0.25991895,708.77,707.54,1.04623944]
[1735743162025,0.25991895,708.76,707.54,1.04623944]
[1735743162325,0.25991895,708.75,707.54,1.04623944]
[1735743162527,1.47438885,708.81,707.54,1.04623944]
[1735743162727,0.25991409,708.8,707.54,1.04623944]
[1735743163027,0.25991409,708.8,707.56,1.04623944]
[1735743164228,0.25991409,708.8,707.62,1.04623944]
[1735743165422,0.25991409,708.8,707.67,1.04623944]
[1735743166523,1.47438885,708.81,707.7,1.04623944]
[1735743166722,0.25989834,708.8,707.7,1.04623944]
[1735743167129,0.25989834,708.8,707.34,0.72163855]
[1735743167130,0.25989834,708.8,707.72,1.04623944]
[1735743167429,0.25989521,708.79,707.72,1.04623944]
[1735743167635,0.25989521,708.78,707.72,1.04623944]
[1735743167830,0.25989521,708.77,707.72,1.04623944]
[1735743168030,0.25989521,708.76,707.72,1.04623944]
[1735743168232,0.25989521,708.75,707.72,1.04623944]
[1735743168438,0.25989521,708.74,707.76,1.04623944]
[1735743168626,0.25989521,708.73,707.76,1.04623944]
[1735743168829,0.25989521,708.72,707.76,1.04623944]
[1735743169131,1.47438885,708.81,707.76,1.04623944]
[1735743169333,0.25989591,708.8,707.76,1.04623944]
[1735743169832,0.25989591,708.8,707.72,1.04623944]
[1735743170535,0.25989591,708.8,707.75,1.04623944]
[1735743171528,0.25989591,708.8,707.34,0.72163855]
[1735743171529,0.25989591,708.8,707.78,1.04623944]
[1735743172929,0.25989591,708.8,707.79,1.04623944]
[1735743174135,0.25989591,708.8,707.8,1.04623944]
[1735743175434,0.25990422,708.79,707.77,1.04623944]
[1735743175729,0.25990422,708.78,707.77,1.04623944]
[1735743175928,0.25990422,708.77,707.77,1.04623944]
[1735743176134,0.25990422,708.76,707.77,1.04623944]
[1735743176433,0.25990422,708.75,707.77,1.04623944]
[1735743176734,0.25990422,708.74,707.76,1.04623944]
[1735743176934,0.25990422,708.73,707.76,1.04623944]
[1735743177129,0.25990422,708.72,707.76,1.04623944]
[1735743177332,0.25992144,708.71,707.76,1.04623944]
[1735743177530,0.25992144,708.7,707.76,1.04623944]
[1735743177732,0.25992144,708.69,707.76,1.04623944]
[1735743177929,1.47435762,708.73,707.73,1.04623944]
[1735743178135,0.25991487,708.72,707.73,1.04623944]
[1735743179049,0.25991487,708.72,707.34,0.72163855]
[1735743179050,0.25991487,708.72,707.76,1.04623944]
[1735743179833,1.47435762,708.73,707.76,1.04623944]